Workbook

Sheet Produktionsanlæg
A1: Produktionsanlæg | B1: Enhed | C1: Standard-levetid | D1: Samlet mængde per 31/12-2022 | E1: Samlet mængde per 31/12-2023 | F1: Samlet mængde per 31/12-2024 | G1: Afvigelse 2022-2023 | H1: Afvigelse 2023-2024 | I1: Bemærkninger
A3: Renseanlæg 1 | G3: =IF(D3="",IF(E3>0,"Ny data",IF(E3="","",0)),IF(D3=0,IF(E3=0,0,"Ny data"),(E3-D3)/D3)) ->  | H3: =IF(E3="",IF(F3>0,"Ny data",IF(F3="","",0)),IF(E3=0,IF(F3=0,0,"Ny data"),(F3-E3)/E3)) -> 
A4: Mindre renseanlæg
A5: Mindre renseanlæg < 5.000 PE | B5: PE | C5: 40 | D5: 0 | G5: 0
A6: Renseanlæg >= 5.000 PE, Vandbehandling
A7: Indløb med riste, Konstruktioner | B7: PE | C7: 60 | D7: 660000 | E7: 660000 | F7: 660000 | G7: 0 | H7: 0 | I7: Slagelse
A8: Indløb med riste, Mek/EL | B8: PE | C8: 20 | D8: 660000 | E8: 660000 | F8: 660000 | G8: 0 | H8: 0
A9: Indløb med riste, SRO | B9: PE | C9: 10 | D9: 660000 | E9: 660000 | F9: 660000 | G9: 0 | H9: 0
A10: Sand- og fedtfang, Kontruktioner | B10: PE | C10: 60 | D10: 312000 | E10: 312000 | F10: 312000 | G10: 0 | H10: 0
A11: Sand- og fedtfang, Mek/EL | B11: PE | C11: 20 | D11: 312000 | E11: 312000 | F11: 312000 | G11: 0 | H11: 0
A12: Sand- og fedtfang, SRO | B12: PE | C12: 10 | D12: 312000 | E12: 312000 | F12: 312000 | G12: 0 | H12: 0
A13: Forklaring, Konstruktioner | B13: PE | C13: 60 | D13: 312000 | E13: 312000 | F13: 312000 | G13: 0 | H13: 0
A14: Forklaring, Mek/EL | B14: PE | C14: 20 | D14: 312000 | E14: 312000 | F14: 312000 | G14: 0 | H14: 0
A15: Forklaring, SRO | B15: PE | C15: 10 | D15: 312000 | E15: 312000 | F15: 312000 | G15: 0 | H15: 0
A16: Beluftningstanke, Konstruktioner | B16: PE | C16: 60 | D16: 175000 | E16: 175000 | F16: 175000 | G16: 0 | H16: 0
A17: Beluftningstanke, Mek/EL | B17: PE | C17: 20 | D17: 175000 | E17: 175000 | F17: 175000 | G17: 0 | H17: 0
A18: Beluftningstanke, SRO | B18: PE | C18: 10 | D18: 175000 | E18: 175000 | F18: 175000 | G18: 0 | H18: 0
A19: Efterklaringstanke, Konstruktioner | B19: PE | C19: 60 | D19: 312000 | E19: 312000 | F19: 312000 | G19: 0 | H19: 0
A20: Efterklaringstanke, Mek/El | B20: PE | C20: 20 | D20: 312000 | E20: 312000 | F20: 312000 | G20: 0 | H20: 0
A21: Efterklaringstanke, SRO | B21: PE | C21: 10 | D21: 312000 | E21: 312000 | F21: 312000 | G21: 0 | H21: 0
A22: Efterbehandlingsanlæg (sandfilter), Konstruktioner | B22: PE | C22: 60 | D22: 0 | G22: 0
A23: Efterbehandlingsanlæg (sandfilter), Mek/EL | B23: PE | C23: 20 | D23: 0 | G23: 0
A24: Efterbehandlingsanlæg (sandfilter), SRO | B24: PE | C24: 10 | D24: 0 | G24: 0
A25: Renseanlæg >= 5.000 PE, Slambehandling
A26: Forafvanding, slam, Konstruktion | B26: PE | C26: 60 | D26: 210000 | E26: 210000 | F26: 210000 | G26: 0 | H26: 0
A27: Forafvanding, slam, Mek/EL | B27: PE | C27: 20 | D27: 210000 | E27: 210000 | F27: 210000 | G27: 0 | H27: 0
A28: Forafvanding, slam, SRO | B28: PE | C28: 10 | D28: 210000 | E28: 210000 | F28: 210000 | G28: 0 | H28: 0
A29: Rådnetanke, slam, Konstruktioner | B29: PE | C29: 60 | D29: 210000 | E29: 210000 | F29: 210000 | G29: 0 | H29: 0
A30: Rådnetanke, slam, Mek/EL | B30: PE | C30: 20 | D30: 210000 | E30: 210000 | F30: 210000 | G30: 0 | H30: 0
A31: Rådnetanke, slam, SRO | B31: PE | C31: 10 | D31: 210000 | E31: 210000 | F31: 210000 | G31: 0 | H31: 0
A32: Gasdisponering, Konstruktioner | B32: PE | C32: 60 | D32: 210000 | E32: 210000 | F32: 210000 | G32: 0 | H32: 0
A33: Gasdisponering, Mek/EL | B33: PE | C33: 20 | D33: 210000 | E33: 210000 | F33: 210000 | G33: 0 | H33: 0
A34: Gasdisponering, SRO | B34: PE | C34: 10 | D34: 210000 | E34: 210000 | F34: 210000 | G34: 0 | H34: 0
A35: Gasdisponering - elproduktionsanlæg, Konstruktioner | B35: PE | C35: 60 | D35: 210000 | E35: 210000 | F35: 210000 | G35: 0 | H35: 0
A36: Gasdisponering - elproduktionsanlæg, Mek/EL | B36: PE | C36: 20 | D36: 210000 | E36: 210000 | F36: 210000 | G36: 0 | H36: 0
A37: Gasdisponering - elproduktionsanlæg, SRO | B37: PE | C37: 10 | D37: 210000 | E37: 210000 | F37: 210000 | G37: 0 | H37: 0
A38: Gasrensning - Aktivt kulfilter | B38: m3/t | C38: 15 | D38: 200 | E38: 200 | F38: 200 | G38: 0 | H38: 0
A39: Gasrensning - Biologisk skrubber | B39: m3/t | C39: 15 | D39: 0 | G39: 0
A40: Opgraderingsanlæg - Membran | B40: m3/t | C40: 15 | D40: 0 | G40: 0
A41: Varmeproduktionsanlæg | B41: m3/t | C41: 15 | D41: 0 | G41: 0
A42: Slutafvanding, slam - lavteknologisk (slambede), Konstruktioner | B42: PE | C42: 60 | D42: 0 | G42: 0
A43: Slutafvanding, slam - lavteknologisk (slambede), Mek/EL | B43: PE | C43: 20 | D43: 0 | G43: 0
A44: Slutafvanding, slam - lavteknologisk (slambede), SRO | B44: PE | C44: 10 | D44: 0 | G44: 0
A45: Slutafvanding, slam - højteknologisk (centrifuger), Konstruktioner | B45: PE | C45: 60 | D45: 210000 | E45: 210000 | F45: 210000 | G45: 0 | H45: 0
A46: Slutafvanding, slam - højteknologisk (centrifuger), Mek/El | B46: PE | C46: 20 | D46: 210000 | E46: 210000 | F46: 210000 | G46: 0 | H46: 0
A47: Slutafvanding, slam - højteknologisk (centrifuger), SRO | B47: PE | C47: 10 | D47: 210000 | E47: 210000 | F47: 210000 | G47: 0 | H47: 0
A48: Renseanlæg >= 5.000 PE, Slamdisponering
A49: Slutdisponering, slam - lavteknologisk (slammineralisering), Konstruktioner | B49: PE | C49: 60 | D49: 0 | G49: 0
A50: Slutdisponering, slam - lavteknologisk (slammineralisering), Mek/EL | B50: PE | C50: 20 | D50: 0 | G50: 0
A51: Slutdisponering, slam - lavteknologisk (slammineralisering), SRO | B51: PE | C51: 10 | D51: 0 | G51: 0
A52: Slutdisponering, slam - højteknologisk (slamtørring), Konstruktioner | B52: PE | C52: 60 | D52: 0 | G52: 0
A53: Slutdisponering, slam - højteknologisk (slamtørring), Mek/EL | B53: PE | C53: 20 | D53: 0 | G53: 0
A54: Slutdisponering, slam - højteknologisk (slamtørring), SRO | B54: PE | C54: 10 | D54: 0 | G54: 0
A55: Slutdisponering, slam - højteknologisk (slamtørring og -forbrænding), Konstruktioner | B55: PE | C55: 60 | D55: 0 | G55: 0
A56: Slutdisponering, slam - højteknologisk (slamtørring og -forbrænding), Mek/EL | B56: PE | C56: 20 | D56: 0 | G56: 0
A57: Slutdisponering, slam - højteknologisk (slamtørring og -forbrænding), SRO | B57: PE | C57: 10 | D57: 0 | G57: 0
A58: Renseanlæg 2
A59: Mindre renseanlæg
A60: Mindre renseanlæg < 5.000 PE | B60: PE | C60: 40 | D60: 0 | G60: 0
A61: Renseanlæg >= 5.000 PE, Vandbehandling
A62: Indløb med riste, Konstruktioner | B62: PE | C62: 60 | D62: 102500 | E62: 102500 | F62: 102500 | G62: 0 | H62: 0 | I62: Korsør
A63: Indløb med riste, Mek/EL | B63: PE | C63: 20 | D63: 102500 | E63: 102500 | F63: 102500 | G63: 0 | H63: 0
A64: Indløb med riste, SRO | B64: PE | C64: 10 | D64: 102500 | E64: 102500 | F64: 102500 | G64: 0 | H64: 0
A65: Sand- og fedtfang, Kontruktioner | B65: PE | C65: 60 | D65: 102500 | E65: 102500 | F65: 102500 | G65: 0 | H65: 0
A66: Sand- og fedtfang, Mek/EL | B66: PE | C66: 20 | D66: 102500 | E66: 102500 | F66: 102500 | G66: 0 | H66: 0
A67: Sand- og fedtfang, SRO | B67: PE | C67: 10 | D67: 102500 | E67: 102500 | F67: 102500 | G67: =IF(D67="",IF(E67>0,"Ny data",IF(E67="","",0)),IF(D67=0,IF(E67=0,0,"Ny data"),(E67-D67)/D67)) -> 0 | H67: =IF(E67="",IF(F67>0,"Ny data",IF(F67="","",0)),IF(E67=0,IF(F67=0,0,"Ny data"),(F67-E67)/E67)) -> 0
A68: Forklaring, Konstruktioner | B68: PE | C68: 60 | D68: 0 | E68: 0 | F68: 0 | G68: 0 | H68: 0
A69: Forklaring, Mek/EL | B69: PE | C69: 20 | D69: 0 | E69: 0 | F69: 0 | G69: 0 | H69: 0
A70: Forklaring, SRO | B70: PE | C70: 10 | D70: 0 | E70: 0 | F70: 0 | G70: 0 | H70: 0
A71: Beluftningstanke, Konstruktioner | B71: PE | C71: 60 | D71: 65000 | E71: 65000 | F71: 65000 | G71: 0 | H71: 0
A72: Beluftningstanke, Mek/EL | B72: PE | C72: 20 | D72: 65000 | E72: 65000 | F72: 65000 | G72: 0 | H72: 0
A73: Beluftningstanke, SRO | B73: PE | C73: 10 | D73: 65000 | E73: 65000 | F73: 65000 | G73: 0 | H73: 0
A74: Efterklaringstanke, Konstruktioner | B74: PE | C74: 60 | D74: 102500 | E74: 102500 | F74: 102500 | G74: 0 | H74: 0
A75: Efterklaringstanke, Mek/El | B75: PE | C75: 20 | D75: 102500 | E75: 102500 | F75: 102500 | G75: 0 | H75: 0
A76: Efterklaringstanke, SRO | B76: PE | C76: 10 | D76: 102500 | E76: 102500 | F76: 102500 | G76: 0 | H76: 0
A77: Efterbehandlingsanlæg (sandfilter), Konstruktioner | B77: PE | C77: 60 | D77: 0 | E77: 0 | F77: 0 | G77: 0 | H77: 0
A78: Efterbehandlingsanlæg (sandfilter), Mek/EL | B78: PE | C78: 20 | D78: 0 | E78: 0 | F78: 0 | G78: 0 | H78: 0
A79: Efterbehandlingsanlæg (sandfilter), SRO | B79: PE | C79: 10 | D79: 0 | E79: 0 | F79: 0 | G79: 0 | H79: 0
A80: Renseanlæg >= 5.000 PE, Slambehandling
A81: Forafvanding, slam, Konstruktion | B81: PE | C81: 60 | D81: 40000 | E81: 40000 | F81: 40000 | G81: 0 | H81: 0
A82: Forafvanding, slam, Mek/EL | B82: PE | C82: 20 | D82: 40000 | E82: 40000 | F82: 40000 | G82: 0 | H82: 0
A83: Forafvanding, slam, SRO | B83: PE | C83: 10 | D83: 40000 | E83: 40000 | F83: 40000 | G83: 0 | H83: 0
A84: Rådnetanke, slam, Konstruktioner | B84: PE | C84: 60 | D84: 0 | G84: 0
A85: Rådnetanke, slam, Mek/EL | B85: PE | C85: 20 | D85: 0 | G85: 0
A86: Rådnetanke, slam, SRO | B86: PE | C86: 10 | D86: 0 | G86: 0
A87: Gasdisponering, Konstruktioner | B87: PE | C87: 60 | D87: 0 | G87: 0
A88: Gasdisponering, Mek/EL | B88: PE | C88: 20 | D88: 0 | G88: 0
A89: Gasdisponering, SRO | B89: PE | C89: 10 | D89: 0 | G89: 0
A90: Gasdisponering - elproduktionsanlæg, Konstruktioner | B90: PE | C90: 60 | D90: 0 | G90: 0
A91: Gasdisponering - elproduktionsanlæg, Mek/EL | B91: PE | C91: 20 | D91: 0 | G91: 0
A92: Gasdisponering - elproduktionsanlæg, SRO | B92: PE | C92: 10 | D92: 0 | G92: 0
A93: Gasrensning - Aktivt kulfilter | B93: m3/t | C93: 15 | D93: 0 | G93: 0
A94: Gasrensning - Biologisk skrubber | B94: m3/t | C94: 15 | D94: 0 | G94: 0
A95: Opgraderingsanlæg - Membran | B95: m3/t | C95: 15 | D95: 0 | G95: 0
A96: Varmeproduktionsanlæg | B96: m3/t | C96: 15 | D96: 0 | G96: 0
A97: Slutafvanding, slam - lavteknologisk (slambede), Konstruktioner | B97: PE | C97: 60 | D97: 0 | G97: 0
A98: Slutafvanding, slam - lavteknologisk (slambede), Mek/EL | B98: PE | C98: 20 | D98: 0 | G98: 0
A99: Slutafvanding, slam - lavteknologisk (slambede), SRO | B99: PE | C99: 10 | D99: 0 | G99: 0
A100: Slutafvanding, slam - højteknologisk (centrifuger), Konstruktioner | B100: PE | C100: 60 | D100: 0 | G100: 0
A101: Slutafvanding, slam - højteknologisk (centrifuger), Mek/El | B101: PE | C101: 20 | D101: 0 | G101: 0
A102: Slutafvanding, slam - højteknologisk (centrifuger), SRO | B102: PE | C102: 10 | D102: 0 | G102: 0
A103: Renseanlæg >= 5.000 PE, Slamdisponering
A104: Slutdisponering, slam - lavteknologisk (slammineralisering), Konstruktioner | B104: PE | C104: 60 | D104: 0 | G104: 0
A105: Slutdisponering, slam - lavteknologisk (slammineralisering), Mek/EL | B105: PE | C105: 20 | D105: 0 | G105: 0
A106: Slutdisponering, slam - lavteknologisk (slammineralisering), SRO | B106: PE | C106: 10 | D106: 0 | G106: 0
A107: Slutdisponering, slam - højteknologisk (slamtørring), Konstruktioner | B107: PE | C107: 60 | D107: 0 | G107: 0
A108: Slutdisponering, slam - højteknologisk (slamtørring), Mek/EL | B108: PE | C108: 20 | D108: 0 | G108: 0
A109: Slutdisponering, slam - højteknologisk (slamtørring), SRO | B109: PE | C109: 10 | D109: 0 | G109: 0
A110: Slutdisponering, slam - højteknologisk (slamtørring og -forbrænding), Konstruktioner | B110: PE | C110: 60 | D110: 0 | G110: 0
A111: Slutdisponering, slam - højteknologisk (slamtørring og -forbrænding), Mek/EL | B111: PE | C111: 20 | D111: 0 | G111: 0
A112: Slutdisponering, slam - højteknologisk (slamtørring og -forbrænding), SRO | B112: PE | C112: 10 | D112: 0 | G112: 0
A113: Renseanlæg 3
A114: Mindre renseanlæg
A115: Mindre renseanlæg < 5.000 PE | B115: PE | C115: 40 | D115: 0 | G115: 0
A116: Renseanlæg >= 5.000 PE, Vandbehandling
A117: Indløb med riste, Konstruktioner | B117: PE | C117: 60 | D117: 129600 | E117: 129600 | F117: 129600 | G117: 0 | H117: 0 | I117: Skælskør
A118: Indløb med riste, Mek/EL | B118: PE | C118: 20 | D118: 129600 | E118: 129600 | F118: 129600 | G118: 0 | H118: 0
A119: Indløb med riste, SRO | B119: PE | C119: 10 | D119: 129600 | E119: 129600 | F119: 129600 | G119: 0 | H119: 0
A120: Sand- og fedtfang, Kontruktioner | B120: PE | C120: 60 | D120: 129600 | E120: 129600 | F120: 129600 | G120: 0 | H120: 0
A121: Sand- og fedtfang, Mek/EL | B121: PE | C121: 20 | D121: 129600 | E121: 129600 | F121: 129600 | G121: 0 | H121: 0
A122: Sand- og fedtfang, SRO | B122: PE | C122: 10 | D122: 129600 | E122: 129600 | F122: 129600 | G122: 0 | H122: 0
A123: Forklaring, Konstruktioner | B123: PE | C123: 60 | D123: 0 | E123: 0 | F123: 0 | G123: 0 | H123: 0
A124: Forklaring, Mek/EL | B124: PE | C124: 20 | D124: 0 | E124: 0 | F124: 0 | G124: 0 | H124: 0
A125: Forklaring, SRO | B125: PE | C125: 10 | D125: 0 | E125: 0 | F125: 0 | G125: 0 | H125: 0
A126: Beluftningstanke, Konstruktioner | B126: PE | C126: 60 | D126: 35000 | E126: 35000 | F126: 35000 | G126: 0 | H126: 0
A127: Beluftningstanke, Mek/EL | B127: PE | C127: 20 | D127: 35000 | E127: 35000 | F127: 35000 | G127: 0 | H127: 0
A128: Beluftningstanke, SRO | B128: PE | C128: 10 | D128: 35000 | E128: 35000 | F128: 35000 | G128: 0 | H128: 0
A129: Efterklaringstanke, Konstruktioner | B129: PE | C129: 60 | D129: 129600 | E129: 129600 | F129: 129600 | G129: 0 | H129: 0
A130: Efterklaringstanke, Mek/El | B130: PE | C130: 20 | D130: 129600 | E130: 129600 | F130: 129600 | G130: 0 | H130: 0
A131: Efterklaringstanke, SRO | B131: PE | C131: 10 | D131: 129600 | E131: 129600 | F131: 129600 | G131: =IF(D131="",IF(E131>0,"Ny data",IF(E131="","",0)),IF(D131=0,IF(E131=0,0,"Ny data"),(E131-D131)/D131)) -> 0 | H131: =IF(E131="",IF(F131>0,"Ny data",IF(F131="","",0)),IF(E131=0,IF(F131=0,0,"Ny data"),(F131-E131)/E131)) -> 0
A132: Efterbehandlingsanlæg (sandfilter), Konstruktioner | B132: PE | C132: 60 | D132: 0 | G132: 0
A133: Efterbehandlingsanlæg (sandfilter), Mek/EL | B133: PE | C133: 20 | D133: 0 | G133: 0
A134: Efterbehandlingsanlæg (sandfilter), SRO | B134: PE | C134: 10 | D134: 0 | G134: 0
A135: Renseanlæg >= 5.000 PE, Slambehandling
A136: Forafvanding, slam, Konstruktion | B136: PE | C136: 60 | D136: 35000 | E136: 35000 | F136: 35000 | G136: 0 | H136: 0
A137: Forafvanding, slam, Mek/EL | B137: PE | C137: 20 | D137: 35000 | E137: 35000 | F137: 35000 | G137: 0 | H137: 0
A138: Forafvanding, slam, SRO | B138: PE | C138: 10 | D138: 35000 | E138: 35000 | F138: 35000 | G138: 0 | H138: 0
A139: Rådnetanke, slam, Konstruktioner | B139: PE | C139: 60 | D139: 0 | E139: 0 | F139: 0 | G139: 0 | H139: 0
A140: Rådnetanke, slam, Mek/EL | B140: PE | C140: 20 | D140: 0 | E140: 0 | F140: 0 | G140: 0 | H140: 0
A141: Rådnetanke, slam, SRO | B141: PE | C141: 10 | D141: 0 | E141: 0 | F141: 0 | G141: 0 | H141: 0
A142: Gasdisponering, Konstruktioner | B142: PE | C142: 60 | D142: 0 | E142: 0 | F142: 0 | G142: 0 | H142: 0
A143: Gasdisponering, Mek/EL | B143: PE | C143: 20 | D143: 0 | E143: 0 | F143: 0 | G143: 0 | H143: 0
A144: Gasdisponering, SRO | B144: PE | C144: 10 | D144: 0 | E144: 0 | F144: 0 | G144: 0 | H144: 0
A145: Gasdisponering - elproduktionsanlæg, Konstruktioner | B145: PE | C145: 60 | D145: 0 | E145: 0 | F145: 0 | G145: 0 | H145: 0
A146: Gasdisponering - elproduktionsanlæg, Mek/EL | B146: PE | C146: 20 | D146: 0 | E146: 0 | F146: 0 | G146: 0 | H146: 0
A147: Gasdisponering - elproduktionsanlæg, SRO | B147: PE | C147: 10 | D147: 0 | E147: 0 | F147: 0 | G147: 0 | H147: 0
A148: Gasrensning - Aktivt kulfilter | B148: m3/t | C148: 15 | D148: 0 | E148: 0 | F148: 0 | G148: 0 | H148: 0
A149: Gasrensning - Biologisk skrubber | B149: m3/t | C149: 15 | D149: 0 | E149: 0 | F149: 0 | G149: 0 | H149: 0
A150: Opgraderingsanlæg - Membran | B150: m3/t | C150: 15 | D150: 0 | E150: 0 | F150: 0 | G150: 0 | H150: 0
A151: Varmeproduktionsanlæg | B151: m3/t | C151: 15 | D151: 0 | E151: 0 | F151: 0 | G151: 0 | H151: 0
A152: Slutafvanding, slam - lavteknologisk (slambede), Konstruktioner | B152: PE | C152: 60 | D152: 0 | E152: 0 | F152: 0 | G152: 0 | H152: 0
A153: Slutafvanding, slam - lavteknologisk (slambede), Mek/EL | B153: PE | C153: 20 | D153: 0 | E153: 0 | F153: 0 | G153: 0 | H153: 0
A154: Slutafvanding, slam - lavteknologisk (slambede), SRO | B154: PE | C154: 10 | D154: 0 | E154: 0 | F154: 0 | G154: 0 | H154: 0
A155: Slutafvanding, slam - højteknologisk (centrifuger), Konstruktioner | B155: PE | C155: 60 | D155: 0 | G155: 0
A156: Slutafvanding, slam - højteknologisk (centrifuger), Mek/El | B156: PE | C156: 20 | D156: 0 | G156: 0
A157: Slutafvanding, slam - højteknologisk (centrifuger), SRO | B157: PE | C157: 10 | D157: 0 | G157: 0
A158: Renseanlæg >= 5.000 PE, Slamdisponering
A159: Slutdisponering, slam - lavteknologisk (slammineralisering), Konstruktioner | B159: PE | C159: 60 | D159: 0 | G159: 0
A160: Slutdisponering, slam - lavteknologisk (slammineralisering), Mek/EL | B160: PE | C160: 20 | D160: 0 | G160: 0
A161: Slutdisponering, slam - lavteknologisk (slammineralisering), SRO | B161: PE | C161: 10 | D161: 0 | G161: 0
A162: Slutdisponering, slam - højteknologisk (slamtørring), Konstruktioner | B162: PE | C162: 60 | D162: 0 | G162: 0
A163: Slutdisponering, slam - højteknologisk (slamtørring), Mek/EL | B163: PE | C163: 20 | D163: 0 | G163: 0
A164: Slutdisponering, slam - højteknologisk (slamtørring), SRO | B164: PE | C164: 10 | D164: 0 | G164: 0
A165: Slutdisponering, slam - højteknologisk (slamtørring og -forbrænding), Konstruktioner | B165: PE | C165: 60 | D165: 0 | G165: 0
A166: Slutdisponering, slam - højteknologisk (slamtørring og -forbrænding), Mek/EL | B166: PE | C166: 20 | D166: 0 | G166: 0
A167: Slutdisponering, slam - højteknologisk (slamtørring og -forbrænding), SRO | B167: PE | C167: 10 | D167: 0 | G167: 0
A168: Renseanlæg 4
A169: Mindre renseanlæg
A170: Mindre renseanlæg < 5.000 PE | B170: PE | C170: 40 | D170: 3000 | E170: 3000 | F170: 3000 | G170: 0 | H170: 0 | I170: Dalmose
A171: Renseanlæg >= 5.000 PE, Vandbehandling
A172: Indløb med riste, Konstruktioner | B172: PE | C172: 60 | D172: 0 | G172: 0
A173: Indløb med riste, Mek/EL | B173: PE | C173: 20 | D173: 0 | G173: 0
A174: Indløb med riste, SRO | B174: PE | C174: 10 | D174: 0 | G174: 0
A175: Sand- og fedtfang, Kontruktioner | B175: PE | C175: 60 | D175: 0 | G175: 0
A176: Sand- og fedtfang, Mek/EL | B176: PE | C176: 20 | D176: 0 | G176: 0
A177: Sand- og fedtfang, SRO | B177: PE | C177: 10 | D177: 0 | G177: 0
A178: Forklaring, Konstruktioner | B178: PE | C178: 60 | D178: 0 | G178: 0
A179: Forklaring, Mek/EL | B179: PE | C179: 20 | D179: 0 | G179: 0
A180: Forklaring, SRO | B180: PE | C180: 10 | D180: 0 | G180: 0
A181: Beluftningstanke, Konstruktioner | B181: PE | C181: 60 | D181: 0 | G181: 0
A182: Beluftningstanke, Mek/EL | B182: PE | C182: 20 | D182: 0 | G182: 0
A183: Beluftningstanke, SRO | B183: PE | C183: 10 | D183: 0 | G183: 0
A184: Efterklaringstanke, Konstruktioner | B184: PE | C184: 60 | D184: 0 | G184: 0
A185: Efterklaringstanke, Mek/El | B185: PE | C185: 20 | D185: 0 | G185: 0
A186: Efterklaringstanke, SRO | B186: PE | C186: 10 | D186: 0 | G186: 0
A187: Efterbehandlingsanlæg (sandfilter), Konstruktioner | B187: PE | C187: 60 | D187: 0 | G187: 0
A188: Efterbehandlingsanlæg (sandfilter), Mek/EL | B188: PE | C188: 20 | D188: 0 | G188: 0
A189: Efterbehandlingsanlæg (sandfilter), SRO | B189: PE | C189: 10 | D189: 0 | G189: 0
A190: Renseanlæg >= 5.000 PE, Slambehandling
A191: Forafvanding, slam, Konstruktion | B191: PE | C191: 60 | D191: 0 | G191: 0
A192: Forafvanding, slam, Mek/EL | B192: PE | C192: 20 | D192: 0 | G192: 0
A193: Forafvanding, slam, SRO | B193: PE | C193: 10 | D193: 0 | G193: 0
A194: Rådnetanke, slam, Konstruktioner | B194: PE | C194: 60 | D194: 0 | G194: 0
A195: Rådnetanke, slam, Mek/EL | B195: PE | C195: 20 | D195: 0 | G195: =IF(D195="",IF(E195>0,"Ny data",IF(E195="","",0)),IF(D195=0,IF(E195=0,0,"Ny data"),(E195-D195)/D195)) -> 0 | H195: =IF(E195="",IF(F195>0,"Ny data",IF(F195="","",0)),IF(E195=0,IF(F195=0,0,"Ny data"),(F195-E195)/E195)) -> 
A196: Rådnetanke, slam, SRO | B196: PE | C196: 10 | D196: 0 | G196: 0
A197: Gasdisponering, Konstruktioner | B197: PE | C197: 60 | D197: 0 | G197: 0
A198: Gasdisponering, Mek/EL | B198: PE | C198: 20 | D198: 0 | G198: 0
A199: Gasdisponering, SRO | B199: PE | C199: 10 | D199: 0 | G199: 0
A200: Gasdisponering - elproduktionsanlæg, Konstruktioner | B200: PE | C200: 60 | D200: 0 | G200: 0
A201: Gasdisponering - elproduktionsanlæg, Mek/EL | B201: PE | C201: 20 | D201: 0 | G201: 0
... 1176 more rows

Sheet Distributionsanlæg
A1: Distributionsanlæg | B1: Enhed | C1: Standard-levetid | D1: Samlet mængde per 31/12-2022 | E1: Samlet mængde per 31/12-2023 | F1: Samlet mængde per 31/12-2024 | G1: Afvigelse 2022-2023 | H1: Afvigelse 2023-2024 | I1: Bemærkninger
A3: Ledningsnet - Land | G3: =IF(D3="",IF(E3>0,"Ny data",IF(E3="","",0)),IF(D3=0,IF(E3=0,0,"Ny data"),(E3-D3)/D3)) ->  | H3: =IF(E3="",IF(F3>0,"Ny data",IF(F3="","",0)),IF(E3=0,IF(F3=0,0,"Ny data"),(F3-E3)/E3)) -> 
A4: Ledningsnet ≤ Ø 200 mm | B4: meter | C4: 75 | D4: =341495-4300 -> 337195 | E4: =(D4+F4)/2 -> 339095.5 | F4: 340996 | G4: 0.00563620457 | H4: 0.005604615809
A5: Ø 200 mm < Ledningsnet ≤ Ø 500 mm | B5: meter | C5: 75 | D5: =72751+2168 -> 74919 | E5: =(D5+F5)/2 -> 71936.435 | F5: 68953.87 | G5: -0.0398105287 | H5: -0.04146111772
A6: Ø 500 mm < Ledningsnet ≤ Ø 800 mm | B6: meter | C6: 75 | D6: =5541+54 -> 5595 | E6: =(D6+F6)/2 -> 5507.06 | F6: 5419.12 | G6: -0.015717605 | H6: -0.01596859304
A7: Ø 800 mm < Ledningsnet ≤ Ø 1000 mm | B7: meter | C7: 75 | D7: 1108 | E7: =(D7+F7)/2 -> 1106.4562 | F7: 1104.9124 | G7: -0.0013933213 | H7: -0.001395265353
A8: Ø 1000 mm < Ledningsnet ≤ Ø 1200 mm | B8: meter | C8: 75 | D8: 70 | E8: =(D8+F8)/2 -> 70.13895 | F8: 70.2779 | G8: 0.001985 | H8: 0.001981067581
A9: Ø 1200 mm < Ledningsnet ≤ Ø 1600 mm | B9: meter | C9: 75 | D9: 34 | E9: =33.97+108 -> 141.97 | F9: 141.97 | G9: 3.175588235 | H9: 0 | I9: kontrol af data
A10: Ledningsnet > Ø 1600 mm (rørbassiner og transportledninger) | B10: meter | C10: 75 | D10: 30 | E10: =(D10+F10)/2 -> 29.94 | F10: 29.88 | G10: -0.002 | H10: -0.002004008016
A11: Strømpeforing ≤ Ø 200 mm | B11: meter | C11: 50 | D11: =7028+588 -> 7616 | E11: =(D11+F11)/2 -> 7656.53 | F11: 7697.06 | G11: 0.005321691176 | H11: 0.005293520694
A12: Strømpeforing Ø 200 mm < Ledningsnet ≤ Ø 500 mm | B12: meter | C12: 50 | D12: 7815 | E12: =(D12+F12)/2 -> 7860.14155 | F12: 7905.2831 | G12: 0.005776269994 | H12: 0.005743096319
A13: Strømpeforing Ø 500 mm < Ledningsnet ≤ Ø 800 mm | B13: meter | C13: 50 | D13: 39 | E13: =(D13+F13)/2 -> 39.10385 | F13: 39.2077 | G13: 0.002662820513 | H13: 0.002655748731
A14: Strømpeforing Ø 800 mm < Ledningsnet ≤ Ø 1000 mm | B14: meter | C14: 50 | D14: 0 | E14: 0 | F14: 0 | G14: 0 | H14: 0
A15: Strømpeforing Ø 1000 mm < Ledningsnet ≤ Ø 1200 mm | B15: meter | C15: 50 | D15: 0 | E15: 0 | F15: 0 | G15: 0 | H15: 0
A16: Strømpeforing Ø 1200 mm < Ledningsnet ≤ Ø 1600 mm | B16: meter | C16: 50 | D16: 108 | E16: 108 | F16: 108 | G16: 0 | H16: 0
A17: Ledningsnet - By
A18: Ledningsnet ≤ Ø 200 mm | B18: meter | C18: 75 | D18: =349712+2817+270718 -> 623247 | E18: =(D18+F18)/2 -> 618749.5 | F18: 614252 | G18: -0.00721624011 | H18: -0.007268692742
A19: Ø 200 mm < Ledningsnet ≤ Ø 500 mm | B19: meter | C19: 75 | D19: =2000+211882 -> 213882 | E19: 201527.755 | F19: 189173.51 | G19: -0.05776196688 | H19: -0.06130294559
A20: Ø 500 mm < Ledningsnet ≤ Ø 800 mm | B20: meter | C20: 75 | D20: 46776 | E20: 44321.8671 | F20: 41867.7342 | G20: -0.05246564264 | H20: -0.05537070211
A21: Ø 800 mm < Ledningsnet ≤ Ø 1000 mm | B21: meter | C21: 75 | D21: 13717 | E21: 13142.24815 | F21: 12567.4963 | G21: -0.04190069622 | H21: -0.04373314546
A22: Ø 1000 mm < Ledningsnet ≤ Ø 1200 mm | B22: meter | C22: 75 | D22: 4787 | E22: 4701.3073 | F22: 4615.6146 | G22: -0.01790112806 | H22: -0.01822741942
A23: Ø 1200 mm < Ledningsnet ≤ Ø 1600 mm | B23: meter | C23: 75 | D23: =4004+710 -> 4714 | E23: 4399.57545 | F23: 4085.1509 | G23: -0.0667001591 | H23: -0.07146702076
A24: Ledningsnet > Ø 1600 mm (rørbassiner og transportledninger) | B24: meter | C24: 75 | D24: 283 | E24: 496.71 | F24: 710.42 | G24: 0.7551590106 | H24: 0.4302510519 | I24: kontrol af data
A25: Strømpeforing ≤ Ø 200 mm | B25: meter | C25: 50 | D25: 18651 | E25: 19131.43 | F25: 19611.86 | G25: 0.02575894054 | H25: 0.02511207996
A26: Strømpeforing Ø 200 mm < Ledningsnet ≤ Ø 500 mm | B26: meter | C26: 50 | D26: 22104 | E26: 22688.06 | F26: 23272.12 | G26: 0.02642327181 | H26: 0.02574305604
A27: Strømpeforing Ø 500 mm < Ledningsnet ≤ Ø 800 mm | B27: meter | C27: 50 | D27: 4455 | E27: 4658.26935 | F27: 4861.5387 | G27: 0.04562723906 | H27: 0.04363623799
A28: Strømpeforing Ø 800 mm < Ledningsnet ≤ Ø 1000 mm | B28: meter | C28: 50 | D28: 431 | E28: 578.22925 | F28: 725.4585 | G28: 0.3415991879 | H28: 0.2546208965 | I28: kontrol af data
A29: Strømpeforing Ø 1000 mm < Ledningsnet ≤ Ø 1200 mm | B29: meter | C29: 50 | D29: 171 | E29: 121.67 | F29: 72.34 | G29: -0.2884795322 | H29: -0.4054409468 | I29: kontrol af data
A30: Strømpeforing Ø 1200 mm < Ledningsnet ≤ Ø 1600 mm | B30: meter | C30: 50 | D30: 219 | E30: 243.855 | F30: 268.71 | G30: 0.1134931507 | H30: 0.1019253245
A31: Ledningsnet - City
A32: Ledningsnet ≤ Ø 200 mm | B32: meter | C32: 75 | D32: =21238+117+38666 -> 60021 | E32: =(D32+F32)/2 -> 56917 | F32: 53813 | G32: -0.051715233 | H32: -0.05453555177
A33: Ø 200 mm < Ledningsnet ≤ Ø 500 mm | B33: meter | C33: 75 | D33: 23001 | E33: 19239.49535 | F33: 15477.9907 | G33: -0.1635365701 | H33: -0.1955095277
A34: Ø 500 mm < Ledningsnet ≤ Ø 800 mm | B34: meter | C34: 75 | D34: 5242 | E34: 4655.04615 | F34: 4068.0923 | G34: -0.1119713564 | H34: -0.1260898026
A35: Ø 800 mm < Ledningsnet ≤ Ø 1000 mm | B35: meter | C35: 75 | D35: 1340 | E35: 1111.97065 | F35: 883.9413 | G35: -0.1701711567 | H35: -0.2050677776 | I35: kontrol af data
A36: Ø 1000 mm < Ledningsnet ≤ Ø 1200 mm | B36: meter | C36: 75 | D36: 151 | E36: 150.75875 | F36: 150.5175 | G36: -0.001597682119 | H36: -0.001600238792
A37: Ø 1200 mm < Ledningsnet ≤ Ø 1600 mm | B37: meter | C37: 75 | D37: 684 | E37: 685.64455 | F37: 687.2891 | G37: 0.002404312865 | H37: 0.00239854601
A38: Ledningsnet > Ø 1600 mm (rørbassiner og transportledninger) | B38: meter | C38: 75 | D38: 136 | E38: 69.55 | F38: 3.1 | G38: -0.4886029412 | H38: -0.9554277498 | I38: kontrol af data
A39: Strømpeforing ≤ Ø 200 mm | B39: meter | C39: 50 | D39: 4451 | E39: 4589.1983 | F39: 4727.3966 | G39: 0.03104882049 | H39: 0.03011382184
A40: Strømpeforing Ø 200 mm < Ledningsnet ≤ Ø 500 mm | B40: meter | C40: 50 | D40: 6639 | E40: 6967.59745 | F40: 7296.1949 | G40: 0.04949502184 | H40: 0.04716079716
A41: Strømpeforing Ø 500 mm < Ledningsnet ≤ Ø 800 mm | B41: meter | C41: 50 | D41: 1060 | E41: 1105.3618 | F41: 1150.7236 | G41: 0.04279415094 | H41: 0.04103796603
A42: Strømpeforing Ø 800 mm < Ledningsnet ≤ Ø 1000 mm | B42: meter | C42: 50 | D42: 211 | E42: 330.04575 | F42: 449.0915 | G42: 0.5641978673 | H42: 0.3606946916 | I42: kontrol af data
A43: Strømpeforing Ø 1000 mm < Ledningsnet ≤ Ø 1200 mm | B43: meter | C43: 50 | D43: 0 | E43: 0 | F43: 0 | G43: 0 | H43: 0
A44: Strømpeforing Ø 1200 mm < Ledningsnet ≤ Ø 1600 mm | B44: meter | C44: 50 | D44: 0 | E44: 0 | F44: 0 | G44: 0 | H44: 0
A45: Ledningsnet - Indre city
A46: Ledningsnet ≤ Ø 200 mm | B46: meter | C46: 75 | D46: 0 | E46: 0 | F46: 0 | G46: 0 | H46: 0
A47: Ø 200 mm < Ledningsnet ≤ Ø 500 mm | B47: meter | C47: 75 | D47: 0 | E47: 0 | F47: 0 | G47: 0 | H47: 0
A48: Ø 500 mm < Ledningsnet ≤ Ø 800 mm | B48: meter | C48: 75 | D48: 0 | E48: 0 | F48: 0 | G48: 0 | H48: 0
A49: Ø 800 mm < Ledningsnet ≤ Ø 1000 mm | B49: meter | C49: 75 | D49: 0 | E49: 0 | F49: 0 | G49: 0 | H49: 0
A50: Ø 1000 mm < Ledningsnet ≤ Ø 1200 mm | B50: meter | C50: 75 | D50: 0 | E50: 0 | F50: 0 | G50: 0 | H50: 0
A51: Ø 1200 mm < Ledningsnet ≤ Ø 1600 mm | B51: meter | C51: 75 | D51: 0 | E51: 0 | F51: 0 | G51: 0 | H51: 0
A52: Ledningsnet > Ø 1600 mm (rørbassiner og transportledninger) | B52: meter | C52: 75 | D52: 0 | E52: 0 | F52: 0 | G52: 0 | H52: 0
A53: Strømpeforing ≤ Ø 200 mm | B53: meter | C53: 50 | D53: 0 | E53: 0 | F53: 0 | G53: 0 | H53: 0
A54: Strømpeforing Ø 200 mm < Ledningsnet ≤ Ø 500 mm | B54: meter | C54: 50 | D54: 0 | E54: 0 | F54: 0 | G54: 0 | H54: 0
A55: Strømpeforing Ø 500 mm < Ledningsnet ≤ Ø 800 mm | B55: meter | C55: 50 | D55: 0 | E55: 0 | F55: 0 | G55: 0 | H55: 0
A56: Strømpeforing Ø 800 mm < Ledningsnet ≤ Ø 1000 mm | B56: meter | C56: 50 | D56: 0 | E56: 0 | F56: 0 | G56: 0 | H56: 0
A57: Strømpeforing Ø 1000 mm < Ledningsnet ≤ Ø 1200 mm | B57: meter | C57: 50 | D57: 0 | E57: 0 | F57: 0 | G57: 0 | H57: 0
A58: Strømpeforing Ø 1200 mm < Ledningsnet ≤ Ø 1600 mm | B58: meter | C58: 50 | D58: 0 | E58: 0 | F58: 0 | G58: 0 | H58: 0
A59: Brønde og stik, ledningsnet - Land
A60: Brønde | B60: stk. | C60: 75 | D60: 4378 | E60: 4389 | F60: 4389 | G60: 0.002512562814 | H60: 0 | I60: Frølunde
A61: Stik | B61: stk. | C61: 75 | D61: =5232+3308 -> 8540 | E61: 8675 | F61: =5245+3564 -> 8809 | G61: 0.01580796253 | H61: 0.01544668588
A62: Brønde og stik, ledningsnet - By
A63: Brønde | B63: stk. | C63: 75 | D63: =14572+153 -> 14725 | E63: =14793-68 -> 14725 | F63: 14793 | G63: 0 | H63: 0.004617996604 | I63: Nye stik og Asehøjvej
A64: Stik | B64: stk. | C64: 75 | D64: 38674 | E64: 38917 | F64: 39159 | G64: 0.0062832911 | H64: 0.006218362155
A65: Brønde og stik, ledningsnet - City
A66: Brønde | B66: stk. | C66: 75 | D66: 1365 | E66: 1365 | F66: 1365 | G66: 0 | H66: 0
A67: Stik | B67: stk. | C67: 75 | D67: 5238 | E67: 5246 | F67: 5253 | G67: =IF(D67="",IF(E67>0,"Ny data",IF(E67="","",0)),IF(D67=0,IF(E67=0,0,"Ny data"),(E67-D67)/D67)) -> 0.001527300496 | H67: =IF(E67="",IF(F67>0,"Ny data",IF(F67="","",0)),IF(E67=0,IF(F67=0,0,"Ny data"),(F67-E67)/E67)) -> 0.001334349981
A68: Brønde og stik, ledningsnet - Indre city
A69: Brønde | B69: stk. | C69: 75 | D69: 0 | E69: 0 | F69: 0 | G69: 0 | H69: 0
A70: Stik | B70: stk. | C70: 75 | D70: 0 | E70: 0 | F70: 0 | G70: 0 | H70: 0
A71: Små pumpestationer (<100 l/s) inkl. SRO-anlæg - Land
A72: Tryksatte minipumpestationer (husstandssystemer) | B72: stk. | C72: 30 | D72: 220 | E72: =220+18 -> 238 | F72: =220+18 -> 238 | G72: 0.08181818182 | H72: 0
A73: Pumpestationer i brønde (< 6,25 m2), Konstruktioner | B73: stk. | C73: 50 | D73: 442 | E73: =1043-E72-E83-196-E84-E87-E76 -> 452 | F73: =+E73 -> 452 | G73: 0.02262443439 | H73: 0
A74: Pumpestationer i brønde (< 6,25 m2), Mek/EL | B74: stk. | C74: 20 | D74: 442 | E74: =763-E85-E77-E88 -> 648 | F74: =+E74 -> 648 | G74: 0.4660633484 | H74: 0 | I74: Præcisering i vejledning
A75: Pumpestationer i brønde (< 6,25 m2), SRO | B75: stk. | C75: 10 | D75: 442 | E75: =+E73 -> 452 | F75: =+F73 -> 452 | G75: 0.02262443439 | H75: 0
A76: Pumpestationer m. overbygning (< 20 m2), Konstruktioner | B76: stk. | C76: 50 | D76: 5 | E76: 5 | F76: 5 | G76: 0 | H76: 0
A77: Pumpestationer m. overbygning (< 20 m2), Mek/EL | B77: stk. | C77: 20 | D77: 5 | E77: 5 | F77: 5 | G77: 0 | H77: 0
A78: Pumpestationer m. overbygning (< 20 m2), SRO | B78: stk. | C78: 10 | D78: 5 | E78: 5 | F78: 5 | G78: 0 | H78: 0
A79: Pumpestationer i underjordiske bygværker (<50 m2), Konstruktioner | B79: stk. | C79: 50 | D79: 0 | G79: 0
A80: Pumpestationer i underjordiske bygværker (<50 m2), Mek/El | B80: stk. | C80: 20 | D80: 0 | G80: 0
A81: Pumpestationer i underjordiske bygværker (<50 m2), SRO | B81: stk. | C81: 10 | D81: 0 | G81: 0
A82: Små pumpestationer (<100 l/s) inkl. SRO-anlæg - By
A83: Tryksatte minipumpestationer (husstandssystemer) | B83: stk. | C83: 30 | D83: 42 | E83: 42 | F83: 42 | G83: 0 | H83: 0
A84: Pumpestationer i brønde (< 6,25 m2), Konstruktioner | B84: stk. | C84: 50 | D84: 103 | E84: =+D84+2 -> 105 | F84: 105 | G84: 0.01941747573 | H84: 0
A85: Pumpestationer i brønde (< 6,25 m2), Mek/EL | B85: stk. | C85: 20 | D85: 103 | E85: =+D85+2 -> 105 | F85: 105 | G85: 0.01941747573 | H85: 0
A86: Pumpestationer i brønde (< 6,25 m2), SRO | B86: stk. | C86: 10 | D86: 103 | E86: 105 | F86: 105 | G86: 0.01941747573 | H86: 0
A87: Pumpestationer m. overbygning (< 20 m2), Konstruktioner | B87: stk. | C87: 50 | D87: 5 | E87: 5 | F87: 5 | G87: 0 | H87: 0
A88: Pumpestationer m. overbygning (< 20 m2), Mek/EL | B88: stk. | C88: 20 | D88: 5 | E88: 5 | F88: 5 | G88: 0 | H88: 0
A89: Pumpestationer m. overbygning (< 20 m2), SRO | B89: stk. | C89: 10 | D89: 5 | E89: 5 | F89: 5 | G89: 0 | H89: 0
A90: Pumpestationer i underjordiske bygværker (<50 m2), Konstruktioner | B90: stk. | C90: 50 | D90: 0 | G90: 0
A91: Pumpestationer i underjordiske bygværker (<50 m2), Mek/El | B91: stk. | C91: 20 | D91: 0 | G91: 0
A92: Pumpestationer i underjordiske bygværker (<50 m2), SRO | B92: stk. | C92: 10 | D92: 0 | G92: 0
A93: Små pumpestationer (<100 l/s) inkl. SRO-anlæg - City
A94: Tryksatte minipumpestationer (husstandssystemer) | B94: stk. | C94: 30 | D94: 0 | G94: 0
A95: Pumpestationer i brønde (< 6,25 m2), Konstruktioner | B95: stk. | C95: 50 | D95: 0 | G95: 0
A96: Pumpestationer i brønde (< 6,25 m2), Mek/EL | B96: stk. | C96: 20 | D96: 0 | G96: 0
A97: Pumpestationer i brønde (< 6,25 m2), SRO | B97: stk. | C97: 10 | D97: 0 | G97: 0
A98: Pumpestationer m. overbygning (< 20 m2), Konstruktioner | B98: stk. | C98: 50 | D98: 0 | G98: 0
A99: Pumpestationer m. overbygning (< 20 m2), Mek/EL | B99: stk. | C99: 20 | D99: 0 | G99: 0
A100: Pumpestationer m. overbygning (< 20 m2), SRO | B100: stk. | C100: 10 | D100: 0 | G100: 0
A101: Pumpestationer i underjordiske bygværker (<50 m2), Konstruktioner | B101: stk. | C101: 50 | D101: 0 | G101: 0
A102: Pumpestationer i underjordiske bygværker (<50 m2), Mek/El | B102: stk. | C102: 20 | D102: 0 | G102: 0
A103: Pumpestationer i underjordiske bygværker (<50 m2), SRO | B103: stk. | C103: 10 | D103: 0 | G103: 0
A104: Små pumpestationer (<100 l/s) inkl. SRO-anlæg - Indre city
A105: Tryksatte minipumpestationer (husstandssystemer) | B105: stk. | C105: 30 | D105: 0 | G105: 0
A106: Pumpestationer i brønde (< 6,25 m2), Konstruktioner | B106: stk. | C106: 50 | D106: 0 | G106: 0
A107: Pumpestationer i brønde (< 6,25 m2), Mek/EL | B107: stk. | C107: 20 | D107: 0 | G107: 0
A108: Pumpestationer i brønde (< 6,25 m2), SRO | B108: stk. | C108: 10 | D108: 0 | G108: 0
A109: Pumpestationer m. overbygning (< 20 m2), Konstruktioner | B109: stk. | C109: 50 | D109: 0 | G109: 0
A110: Pumpestationer m. overbygning (< 20 m2), Mek/EL | B110: stk. | C110: 20 | D110: 0 | G110: 0
A111: Pumpestationer m. overbygning (< 20 m2), SRO | B111: stk. | C111: 10 | D111: 0 | G111: 0
A112: Pumpestationer i underjordiske bygværker (<50 m2), Konstruktioner | B112: stk. | C112: 50 | D112: 0 | G112: 0
A113: Pumpestationer i underjordiske bygværker (<50 m2), Mek/El | B113: stk. | C113: 20 | D113: 0 | G113: 0
A114: Pumpestationer i underjordiske bygværker (<50 m2), SRO | B114: stk. | C114: 10 | D114: 0 | G114: 0
A115: Store pumpestationer: inkl. SRO-anlæg - Land
A116: Kælder | B116: m2 | C116: 75 | D116: =4*17 -> 68 | E116: 68 | F116: 68 | G116: 0 | H116: 0
A117: Pumpeinstallation Miljøklasse A (100-300 l/s) - Mek/EL | B117: stk. | C117: 20 | D117: 16 | E117: 16 | F117: 16 | G117: 0 | H117: 0
A118: Pumpeinstallation Miljøklasse A (100-300 l/s) - SRO | B118: stk. | C118: 10 | D118: 16 | E118: 16 | F118: 16 | G118: 0 | H118: 0
A119: Pumpeinstallation Miljøklasse A (300-600 l/s) - Mek/EL | B119: stk. | C119: 20 | D119: 0 | E119: 2 | F119: 2 | G119: Ny data | H119: 0 | I119: opdatering
A120: Pumpeinstallation Miljøklasse A (300-600 l/s) - SRO | B120: stk. | C120: 10 | D120: 0 | E120: 2 | F120: 2 | G120: Ny data | H120: 0 | I120: opdatering
A121: Pumpeinstallation Miljøklasse A (600-1.000 l/s) - Mek/EL | B121: stk. | C121: 20 | D121: 1 | E121: 1 | F121: 1 | G121: 0 | H121: 0
A122: Pumpeinstallation Miljøklasse A (600-1.000 l/s) - SRO | B122: stk. | C122: 10 | D122: 1 | E122: 1 | F122: 1 | G122: 0 | H122: 0
A123: Pumpeinstallation Miljøklasse A (1.000-1.500 l/s) - Mek/EL | B123: stk. | C123: 20 | D123: 0 | G123: 0
A124: Pumpeinstallation Miljøklasse A (1.000-1.500 l/s) - SRO | B124: stk. | C124: 10 | D124: 0 | G124: 0
A125: Pumpeinstallation Miljøklasse B (100-300 l/s) - Mek/EL | B125: stk. | C125: 20 | D125: 0 | G125: 0
A126: Pumpeinstallation Miljøklasse B (100-300 l/s) - SRO | B126: stk. | C126: 10 | D126: 0 | G126: 0
A127: Pumpeinstallation Miljøklasse B (300-600 l/s) - Mek/EL | B127: stk. | C127: 20 | D127: 0 | G127: 0
A128: Pumpeinstallation Miljøklasse B (300-600 l/s) - SRO | B128: stk. | C128: 10 | D128: 0 | G128: 0
A129: Pumpeinstallation Miljøklasse B (600-1.000 l/s) - Mek/EL | B129: stk. | C129: 20 | D129: 0 | G129: 0
A130: Pumpeinstallation Miljøklasse B (600-1.000 l/s) - SRO | B130: stk. | C130: 10 | D130: 0 | G130: 0
A131: Pumpeinstallation Miljøklasse B (1.000-1.500 l/s) - Mek/EL | B131: stk. | C131: 20 | D131: 0 | G131: =IF(D131="",IF(E131>0,"Ny data",IF(E131="","",0)),IF(D131=0,IF(E131=0,0,"Ny data"),(E131-D131)/D131)) -> 0 | H131: =IF(E131="",IF(F131>0,"Ny data",IF(F131="","",0)),IF(E131=0,IF(F131=0,0,"Ny data"),(F131-E131)/E131)) -> 
A132: Pumpeinstallation Miljøklasse B (1.000-1.500 l/s) - SRO | B132: stk. | C132: 10 | D132: 0 | G132: 0
A133: Overbygning | B133: m2 | C133: 75 | D133: 0 | G133: 0
A134: Store pumpestationer: inkl. SRO-anlæg - By
A135: Kælder | B135: m2 | C135: 75 | D135: =22*30 -> 660 | E135: 767 | F135: 767 | G135: 0.1621212121 | H135: 0
A136: Pumpeinstallation Miljøklasse A (100-300 l/s) - Mek/EL | B136: stk. | C136: 20 | D136: 11 | E136: 11 | F136: 11 | G136: 0 | H136: 0
A137: Pumpeinstallation Miljøklasse A (100-300 l/s) - SRO | B137: stk. | C137: 10 | D137: 11 | E137: 11 | F137: 11 | G137: 0 | H137: 0
A138: Pumpeinstallation Miljøklasse A (300-600 l/s) - Mek/EL | B138: stk. | C138: 20 | D138: 5 | E138: 5 | F138: 5 | G138: 0 | H138: 0
A139: Pumpeinstallation Miljøklasse A (300-600 l/s) - SRO | B139: stk. | C139: 10 | D139: 5 | E139: 5 | F139: 5 | G139: 0 | H139: 0
A140: Pumpeinstallation Miljøklasse A (600-1.000 l/s) - Mek/EL | B140: stk. | C140: 20 | D140: 4 | E140: 4 | F140: 4 | G140: 0 | H140: 0
A141: Pumpeinstallation Miljøklasse A (600-1.000 l/s) - SRO | B141: stk. | C141: 10 | D141: 4 | E141: 4 | F141: 4 | G141: 0 | H141: 0
A142: Pumpeinstallation Miljøklasse A (1.000-1.500 l/s) - Mek/EL | B142: stk. | C142: 20 | D142: 2 | E142: 2 | F142: 2 | G142: 0 | H142: 0
A143: Pumpeinstallation Miljøklasse A (1.000-1.500 l/s) - SRO | B143: stk. | C143: 10 | D143: 2 | E143: 2 | F143: 2 | G143: 0 | H143: 0
A144: Pumpeinstallation Miljøklasse B (100-300 l/s) - Mek/EL | B144: stk. | C144: 20 | D144: 0 | G144: 0
A145: Pumpeinstallation Miljøklasse B (100-300 l/s) - SRO | B145: stk. | C145: 10 | D145: 0 | G145: 0
A146: Pumpeinstallation Miljøklasse B (300-600 l/s) - Mek/EL | B146: stk. | C146: 20 | D146: 0 | G146: 0
A147: Pumpeinstallation Miljøklasse B (300-600 l/s) - SRO | B147: stk. | C147: 10 | D147: 0 | G147: 0
A148: Pumpeinstallation Miljøklasse B (600-1.000 l/s) - Mek/EL | B148: stk. | C148: 20 | D148: 0 | G148: 0
A149: Pumpeinstallation Miljøklasse B (600-1.000 l/s) - SRO | B149: stk. | C149: 10 | D149: 0 | G149: 0
A150: Pumpeinstallation Miljøklasse B (1.000-1.500 l/s) - Mek/EL | B150: stk. | C150: 20 | D150: 0 | G150: 0
A151: Pumpeinstallation Miljøklasse B (1.000-1.500 l/s) - SRO | B151: stk. | C151: 10 | D151: 0 | G151: 0
A152: Overbygning | B152: m2 | C152: 75 | D152: 0 | E152: 110 | F152: 110 | G152: Ny data | H152: 0 | I152: opdatering
A153: Store pumpestationer: inkl. SRO-anlæg - City
A154: Kælder | B154: m2 | C154: 75 | D154: 0 | G154: 0
A155: Pumpeinstallation Miljøklasse A (100-300 l/s) - Mek/EL | B155: stk. | C155: 20 | D155: 0 | G155: 0
A156: Pumpeinstallation Miljøklasse A (100-300 l/s) - SRO | B156: stk. | C156: 10 | D156: 0 | G156: 0
A157: Pumpeinstallation Miljøklasse A (300-600 l/s) - Mek/EL | B157: stk. | C157: 20 | D157: 0 | G157: 0
A158: Pumpeinstallation Miljøklasse A (300-600 l/s) - SRO | B158: stk. | C158: 10 | D158: 0 | G158: 0
A159: Pumpeinstallation Miljøklasse A (600-1.000 l/s) - Mek/EL | B159: stk. | C159: 20 | D159: 0 | G159: 0
A160: Pumpeinstallation Miljøklasse A (600-1.000 l/s) - SRO | B160: stk. | C160: 10 | D160: 0 | G160: 0
A161: Pumpeinstallation Miljøklasse A (1.000-1.500 l/s) - Mek/EL | B161: stk. | C161: 20 | D161: 0 | G161: 0
A162: Pumpeinstallation Miljøklasse A (1.000-1.500 l/s) - SRO | B162: stk. | C162: 10 | D162: 0 | G162: 0
A163: Pumpeinstallation Miljøklasse B (100-300 l/s) - Mek/EL | B163: stk. | C163: 20 | D163: 0 | G163: 0
A164: Pumpeinstallation Miljøklasse B (100-300 l/s) - SRO | B164: stk. | C164: 10 | D164: 0 | G164: 0
A165: Pumpeinstallation Miljøklasse B (300-600 l/s) - Mek/EL | B165: stk. | C165: 20 | D165: 0 | G165: 0
A166: Pumpeinstallation Miljøklasse B (300-600 l/s) - SRO | B166: stk. | C166: 10 | D166: 0 | G166: 0
A167: Pumpeinstallation Miljøklasse B (600-1.000 l/s) - Mek/EL | B167: stk. | C167: 20 | D167: 0 | G167: 0
A168: Pumpeinstallation Miljøklasse B (600-1.000 l/s) - SRO | B168: stk. | C168: 10 | D168: 0 | G168: 0
A169: Pumpeinstallation Miljøklasse B (1.000-1.500 l/s) - Mek/EL | B169: stk. | C169: 20 | D169: 0 | G169: 0
A170: Pumpeinstallation Miljøklasse B (1.000-1.500 l/s) - SRO | B170: stk. | C170: 10 | D170: 0 | G170: 0
A171: Overbygning | B171: m2 | C171: 75 | D171: 0 | G171: 0
A172: Store pumpestationer: inkl. SRO-anlæg - Indre city
A173: Kælder | B173: m2 | C173: 75 | D173: 0 | G173: 0
A174: Pumpeinstallation Miljøklasse A (100-300 l/s) - Mek/EL | B174: stk. | C174: 20 | D174: 0 | G174: 0
A175: Pumpeinstallation Miljøklasse A (100-300 l/s) - SRO | B175: stk. | C175: 10 | D175: 0 | G175: 0
A176: Pumpeinstallation Miljøklasse A (300-600 l/s) - Mek/EL | B176: stk. | C176: 20 | D176: 0 | G176: 0
A177: Pumpeinstallation Miljøklasse A (300-600 l/s) - SRO | B177: stk. | C177: 10 | D177: 0 | G177: 0
A178: Pumpeinstallation Miljøklasse A (600-1.000 l/s) - Mek/EL | B178: stk. | C178: 20 | D178: 0 | G178: 0
A179: Pumpeinstallation Miljøklasse A (600-1.000 l/s) - SRO | B179: stk. | C179: 10 | D179: 0 | G179: 0
A180: Pumpeinstallation Miljøklasse A (1.000-1.500 l/s) - Mek/EL | B180: stk. | C180: 20 | D180: 0 | G180: 0
A181: Pumpeinstallation Miljøklasse A (1.000-1.500 l/s) - SRO | B181: stk. | C181: 10 | D181: 0 | G181: 0
A182: Pumpeinstallation Miljøklasse B (100-300 l/s) - Mek/EL | B182: stk. | C182: 20 | D182: 0 | G182: 0
A183: Pumpeinstallation Miljøklasse B (100-300 l/s) - SRO | B183: stk. | C183: 10 | D183: 0 | G183: 0
A184: Pumpeinstallation Miljøklasse B (300-600 l/s) - Mek/EL | B184: stk. | C184: 20 | D184: 0 | G184: 0
A185: Pumpeinstallation Miljøklasse B (300-600 l/s) - SRO | B185: stk. | C185: 10 | D185: 0 | G185: 0
A186: Pumpeinstallation Miljøklasse B (600-1.000 l/s) - Mek/EL | B186: stk. | C186: 20 | D186: 0 | G186: 0
A187: Pumpeinstallation Miljøklasse B (600-1.000 l/s) - SRO | B187: stk. | C187: 10 | D187: 0 | G187: 0
A188: Pumpeinstallation Miljøklasse B (1.000-1.500 l/s) - Mek/EL | B188: stk. | C188: 20 | D188: 0 | G188: 0
A189: Pumpeinstallation Miljøklasse B (1.000-1.500 l/s) - SRO | B189: stk. | C189: 10 | D189: 0 | G189: 0
A190: Overbygning | B190: m2 | C190: 75 | D190: 0 | G190: 0
A191: Overløbsbygværker - Land
A192: Kælder (< 7 m2) | B192: stk. | C192: 75 | D192: 30 | E192: 80 | F192: 80 | G192: 1.666666667 | H192: 0 | I192: Præcisering af overløbsbygværker
A193: Kælder (7 - 20 m2) | B193: m2 | C193: 75 | D193: 0 | G193: 0
A194: Kælder (20 - 30 m2) | B194: m2 | C194: 75 | D194: 0 | G194: 0
A195: Installationer (mindre end 7 m2) | B195: stk. | C195: 20 | D195: 30 | E195: 80 | F195: 80 | G195: =IF(D195="",IF(E195>0,"Ny data",IF(E195="","",0)),IF(D195=0,IF(E195=0,0,"Ny data"),(E195-D195)/D195)) -> 1.666666667 | H195: =IF(E195="",IF(F195>0,"Ny data",IF(F195="","",0)),IF(E195=0,IF(F195=0,0,"Ny data"),(F195-E195)/E195)) -> 0 | I195: Præcisering af overløbsbygværker
A196: Installationer, Miljøklasse A. (7-20 m2) - Mek/EL | B196: stk. | C196: 20 | D196: 0 | G196: 0
A197: Installationer, Miljøklasse A. (7-20 m2) - SRO | B197: stk. | C197: 10 | D197: 0 | G197: 0
A198: Installationer, Miljøklasse A. (20-30 m2) - Mek/EL | B198: stk. | C198: 20 | D198: 0 | G198: 0
A199: Installationer, Miljøklasse A. (20-30 m2) - SRO | B199: stk. | C199: 10 | D199: 0 | G199: 0
A200: Installationer, Miljøklasse B. (7-20 m2) - Mek/EL | B200: stk. | C200: 20 | D200: 0 | G200: 0
A201: Installationer, Miljøklasse B. (7-20 m2) - SRO | B201: stk. | C201: 10 | D201: 0 | G201: 0
... 117 more rows

Sheet Fællesfunktionsanlæg
A1: Fællesfunktionsanlæg | B1: Enhed | C1: Standard-levetid | D1: Samlet mængde per 31/12-2022 | E1: Samlet mængde per 31/12-2023 | F1: Samlet mængde per 31/12-2024 | G1: Afvigelse 2022-2023 | H1: Afvigelse 2023-2024 | I1: Bemærkninger
A3: Andre | G3: =IF(D3="",IF(E3>0,"Ny data",IF(E3="","",0)),IF(D3=0,IF(E3=0,0,"Ny data"),(E3-D3)/D3)) ->  | H3: =IF(E3="",IF(F3>0,"Ny data",IF(F3="","",0)),IF(E3=0,IF(F3=0,0,"Ny data"),(F3-E3)/E3)) -> 
A4: Administrationbygninger | B4: m2 | C4: 75 | D4: 2033 | E4: 2033 | F4: 2033 | G4: 0 | H4: 0
A5: Arbejdsplads og kontor | B5: stk. | C5: 5 | D5: 44 | E5: 44 | F5: 44 | G5: 0 | H5: 0
A6: Køretøjer, personbil | B6: stk. | C6: 5 | D6: 10 | E6: 10 | F6: 9 | G6: 0 | H6: -0.1
A7: Køretøjer, små lastvogne (< 3.500 kg.) | B7: stk. | C7: 5 | D7: 5 | E7: 5 | F7: 5 | G7: 0 | H7: 0
A8: Køretøjer, store lastvogne (> 3.500 kg.) | B8: stk. | C8: 5 | D8: 0 | E8: 0 | F8: 0 | G8: 0 | H8: 0
A9: Køretøjer, entreprenørmaskiner | B9: stk. | C9: 5 | D9: 7 | E9: 8 | F9: 9 | G9: 0.1428571429 | H9: 0.125
A10: Slamsugere | B10: stk. | C10: 5 | D10: 1 | E10: 1 | F10: 1 | G10: 0 | H10: 0
A11: Værksteder, garager | B11: m2 | C11: 75 | D11: 1960 | E11: 1960 | F11: 1960 | G11: 0 | H11: 0
A12: Solcelleanlæg eksl. Inverter | B12: kWp | C12: 25 | D12: 0 | E12: 0 | F12: 0 | G12: 0 | H12: 0
A13: Inverter til solcelleanlæg | B13: kWp | C13: 10 | D13: 0 | E13: 0 | F13: 0 | G13: 0 | H13: 0
